Cogmind - Beta 17 @@@ ROGUE MODE // 2026.08.19 @ 00:11:36 Player: DietSnapple Result: Destroyed by P-60 Hacker with Shock Rifle Performance ------------- Evolutions (4) 2000 Regions Visited (10) 2000 Robots Destroyed (97) 485 Value Destroyed (3652) 3652 Prototype IDs (34) 680 Alien Tech Used (0) 0 Bonus (2067) 2067 TOTAL SCORE: 10884 Bonus ------- High Alert Combat Kills 76 Follower Combat Kills 291 Entered Garrisons 400 Used RIF Installer 1000 Aligned with FarCom 300 Cogmind --------- Core Integrity 0/850 Matter 234/300 Energy 100/100 System Corruption 5% Temperature Cool (2) Movement Flying (40) Location -6/Factory Parts ------- > --- POWER (2) -------- (None) > --- PROPULSION (4) --- Xenon Bombardment Thruster > --- UTILITY (6) ------ Machine Analyzer Enhanced Optical Array Improved Hacking Suite > --- WEAPON (3) ------- (None) > --- INVENTORY (5) ---- Superbattery (1500) Relay Coupler [Cutter] (27) Relay Coupler [Sentry] (23) Relay Coupler [Hunter] (17) Peak State ------------ > --- POWER ------------ Improved Deuterium Engine Heavy Deuterium Engine > --- PROPULSION ------- Improved Heavy Treads Improved Heavy Treads > --- UTILITY ---------- Improved Cooling System Improved Cooling System High-capacity Storage Unit Superbattery Improved Utility Shielding Improved Light Armor Plating > --- WEAPON ----------- PD Laser > --- INVENTORY -------- Advanced Heat Sink Advanced Heat Sink Gravity Neutralizer Improved Power Shielding Hacking Suite Relay Coupler [Cutter] Relay Coupler [Sentry] Relay Coupler [Sentry] Relay Coupler [Hunter] Relay Coupler [Hunter] High-powered Shock Rifle Plasma Rifle Remote Datajack [Rating: 88] Favorites ----------- Power Light Nuclear Core Engine Ion Engine Power Core Light Nuclear Core Reactor Light Antimatter Reactor Propulsion Light Treads Treads Light Treads Flight Unit Xenon Bombardment Thruster Utility Large Storage Unit Device Seismic Detector Storage Large Storage Unit Processor Machine Analyzer Hackware Hacking Suite Protection Improved Light Armor Plating Weapon Light Cannon Energy Gun PD Laser Energy Cannon Plasma Cannon Ballistic Gun Precision Assault Rifle Ballistic Cannon Light Cannon Launcher Rocket Launcher Special Weapon Remote Datajack Slashing Weapon Katana Special Melee Weapon Improved Datajack Build | -11 -10 -10 -10 -9 -8 -8 -8 -7 -7 -6 ------- Run | Yrd Mat Min Exi Min Mat Gar Mat Fac Gar Fac Slots Evolved 8 | . . . . . 4 . . 2 . 2 Power 1 | . . . . . 1 . . . . . Propulsion 2 | . . . . . . . . 1 . 1 Utility 4 | . . . . . 2 . . 1 . 1 Weapon 1 | . . . . . 1 . . . . . Parts Attached 88 | 8 4 3 . . 13 1 11 2 24 22 Power 18 | 1 2 1 . . 2 . 2 1 6 3 Engine 7 | 1 2 . . . . . 1 . 1 2 Core 9 | . . 1 . . 2 . 1 . 4 1 Reactor 2 | . . . . . . . . 1 1 . Propulsion 15 | 2 1 2 . . 2 . 2 1 1 4 Treads 13 | 2 1 2 . . 2 . 2 1 1 2 Leg . | . . . . . . . . . . . Wheel . | . . . . . . . . . . . Hover . | . . . . . . . . . . . Flight 2 | . . . . . . . . . . 2 Utility 32 | 2 1 . . . 6 . 1 . 10 12 Device 11 | 1 . . . . 2 . . . 5 3 Storage 4 | 1 1 . . . . . 1 . 1 . Processor 3 | . . . . . 1 . . . . 2 Hackware 7 | . . . . . 1 . . . 1 5 Protection 7 | . . . . . 2 . . . 3 2 Artifact . | . . . . . . . . . . . Weapon 23 | 3 . . . . 3 1 6 . 7 3 Energy Gun 8 | 1 . . . . . . 3 . 1 3 Energy Cannon 3 | . . . . . . . . . 3 . Ballistic Gun 5 | 2 . . . . . . 3 . . . Ballistic Cannon 3 | . . . . . 3 . . . . . Launcher 1 | . . . . . . 1 . . . . Special Weapon 1 | . . . . . . . . . 1 . Impact Weapon . | . . . . . . . . . . . Slashing Weapon 1 | . . . . . . . . . 1 . Piercing Weapon . | . . . . . . . . . . . Special Melee Weapon 1 | . . . . . . . . . 1 . Unidentified Prototypes 6 | . . . . . . . 4 . 1 1 Parts Lost 37 | . 1 . . . 3 . 1 . 17 15 Power 10 | . 1 . . . . . . . 6 3 Propulsion 8 | . . . . . . . 1 . 4 3 Utility 11 | . . . . . 2 . . . 4 5 Weapon 8 | . . . . . 1 . . . 3 4 Highest Loss Streak 10 | . 1 . . . 2 . 1 . 10 6 To Critical Strikes 1 | . . . . . . . . . 1 . Average Backups 13 | 1 7 14 15 15 14 13 17 19 16 10 Power . | . . 1 1 1 . 1 1 1 . . Propulsion 1 | 1 2 2 2 2 3 3 2 1 1 . Utility 5 | . 1 2 3 4 3 4 9 11 10 9 Weapon 3 | . 2 7 7 7 6 4 4 4 2 . Tool/Special . | . . . . . . . . . . . Unused Backups 22 | . . 4 1 . 2 1 8 . . 6 Power . | . . . . . . . . . . . Propulsion 2 | . . . . . . . 2 . . . Utility 10 | . . 1 . . 1 . 2 . . 6 Weapon 9 | . . 3 1 . . 1 4 . . . Tool/Special 1 | . . . . . 1 . . . . . Average Slot Usage (%) 91 | . 99 100 100 100 94 100 99 99 82 62 Engine 5 | . 13 12 . . 4 . 7 . 2 5 Core 8 | . . 2 14 14 12 18 10 11 8 1 Treads 20 | . 28 28 28 28 18 18 17 22 14 10 Device 8 | . 14 14 14 14 3 . . 6 9 14 Storage 10 | . 14 14 14 14 9 9 9 7 7 9 Processor 3 | . . . . . 8 9 9 7 . 1 Hackware 3 | . . . . . 2 9 9 7 7 1 Protection 5 | . . . . . 8 9 9 7 6 6 Energy Gun 1 | . . . . . . . 7 . . 6 Ballistic Gun 13 | . 28 28 28 28 2 . 7 23 10 . Ballistic Cannon 6 | . . . . . 23 20 9 . . . Peak Build Rating 88 | 7 8 11 12 12 28 29 43 53 68 88 Average Rating 30 | 5 7 9 11 12 22 27 34 50 47 69 On Entrance 24 | . 7 8 11 12 12 28 29 43 53 68 Avg Prop Armor Cover (%) . | . . . . . . . . . . . Naked Turns 27 | . . . . . . . . . . 27 Heaviest Build 85 | 12 29 29 29 29 46 46 68 75 85 84 Greatest Support 150 | 40 40 40 40 40 43 43 43 63 98 150 Greatest Overweight (x) 3 | . . . . . 1 1 3 1 3 . Average Overweight (x) . | . . . . . . 1 1 1 . . Largest Inventory Capacity 20 | 8 15 15 15 15 15 15 20 20 20 20 Average Capacity 16 | 6 12 15 15 15 15 15 19 20 20 17 Most Carried 20 | 3 13 15 15 15 15 15 20 20 20 15 Average Carried 13 | 1 7 14 14 15 14 13 17 19 17 10 Final Capacity 20 | 8 15 15 15 15 15 15 20 20 20 5 Final Carried 20 | 3 13 15 15 15 15 15 20 20 15 4 Class Distribution -------------------- 32% | Skirmisher 26% | Mutant 12% | Scavenger-Skirmisher 12% | Bothacker-Tank 10% | Scavenger-Mutant 4% | Bothacker-Mutant Dominant Class ---------------- Mutant | -10/Materials Mutant | -10/Mines Scavenger-Mutant | -10/Exiles Scavenger-Mutant | -9/Mines Scavenger-Skirmisher | -8/Materials Skirmisher | -8/Garrison Skirmisher | -8/Materials Skirmisher | -7/Factory Bothacker-Mutant | -7/Garrison Bothacker-Tank | -6/Factory Resources | -11 -10 -10 -10 -9 -8 -8 -8 -7 -7 -6 ----------- Run | Yrd Mat Min Exi Min Mat Gar Mat Fac Gar Fac Matter Collected 2727 | 318 273 38 . . 524 196 236 370 507 265 Remotely . | . . . . . . . . . . . Salvage Created 4500 | 50 532 50 . . 549 204 397 300 1803 615 Parts 224 | 6 27 6 . . 32 25 16 15 67 30 Haulers Intercepted 7 | . 2 . . . 3 . 2 . . . Recyclers Shooed 1 | . 1 . . . . . . . . . Parts Field Recycled . | . . . . . . . . . . . Retrieved Matter . | . . . . . . . . . . . Parts Self-Destructed . | . . . . . . . . . . . Prevented . | . . . . . . . . . . . Parts Restored . | . . . . . . . . . . . Kills | -11 -10 -10 -10 -9 -8 -8 -8 -7 -7 -6 ------- Run | Yrd Mat Min Exi Min Mat Gar Mat Fac Gar Fac Combat Hostiles Destroyed 94 | . 10 1 . . 11 14 6 6 37 9 Guns 52 | . 10 1 . . 1 . 4 6 21 9 Cannons 35 | . . . . . 10 8 2 . 15 . AOE 6 | . . . . . . 6 . . . . Classes Destroyed 15 | 1 4 1 . . 3 3 1 . 2 . Worker 4 | . 2 . . . . . . 2 . . Builder 2 | . . . . . 1 . . . . 1 Tunneler 2 | 2 . . . . . . . . . . Hauler 7 | . 2 . . . 3 . 2 . . . Recycler 1 | . . . . . . . 1 . . . Operator 2 | . 1 . . . . . . . . 1 Watcher 2 | . . . . . 1 . . . . 1 Swarmer 18 | . . . . . . 8 . 1 9 . Grunt 38 | . 10 . . . 5 3 4 3 7 6 Brawler 4 | . . . . . . 1 1 . 1 1 Duelist 3 | . . . . . . 1 . 1 1 . Sentry 10 | . . 1 . . 5 1 1 1 1 . Hunter 2 | . . . . . 1 . . . . 1 Programmer 2 | . . . . . . . . . 1 1 Assembled 17 | . . . . . . . . . 17 . Best Kill Streak 13 | 2 4 1 . . 3 6 2 3 13 3 Combat Bots Only 13 | . 3 1 . . 3 6 2 3 13 3 Max Kills in Single Turn 4 | 1 1 1 . . 1 4 1 1 2 1 Gunslinging . | . . . . . . . . . . . Exploded 4 | . . . . . . 4 . . . . Melee . | . . . . . . . . . . . Uniques/NPCs Destroyed . | . . . . . . . . . . . Combat | -11 -10 -10 -10 -9 -8 -8 -8 -7 -7 -6 -------- Run | Yrd Mat Min Exi Min Mat Gar Mat Fac Gar Fac Hostile Shots Fired 694 | . 35 4 . . 51 44 20 43 280 217 Missed 204 | . 3 1 . . 13 17 10 16 72 72 Hits 490 | . 32 3 . . 38 27 10 27 208 145 Melee 16 | . . . . . . . . 2 12 2 Projectile 474 | . 32 3 . . 38 27 10 25 196 143 AOE 4 | . . . . . . . . 2 . 2 Critical Strikes 16 | . . . . . 2 . . 4 6 4 Part Disruptions 2 | . . . . . . . . . 2 . Damage Taken 7499 | . 392 43 . . 537 339 109 474 2872 2733 Core 1369 | . 77 . . . 46 18 36 36 306 850 Absorbed by Shields . | . . . . . . . . . . . Reduced by Siege Mode 25 | . . . . . . . . . . 25 Redirected to Shielding 98 | . . . . . . . . . . 98 Core Remaining (%) 75 | 100 . . . 69 . . 81 . 51 . Volleys Fired 281 | 14 55 2 . . 33 32 18 14 86 27 Largest 3 | 2 2 2 . . 3 3 3 3 3 2 Hottest 240 | 40 40 40 . . 97 97 148 84 240 135 Shots Fired 661 | 28 110 4 . . 98 61 51 42 188 79 Gun 404 | 28 110 4 . . 25 . 30 42 88 77 Cannon 247 | . . . . . 73 55 21 . 98 . Launcher 6 | . . . . . . 6 . . . . Special 4 | . . . . . . . . . 2 2 Kinetic 451 | 28 110 4 . . 98 55 30 42 84 . Thermal 180 | . . . . . . . 21 . 102 57 Explosive 6 | . . . . . . 6 . . . . Electromagnetic 20 | . . . . . . . . . . 20 Robot Hit Streak 68 | 6 11 8 . . 24 7 13 35 68 6 Robot Miss Streak 16 | 3 4 1 . . 6 7 3 . 4 16 Penetration Max . | . . . . . . . . . . . Secondary Targets 5 | . . 1 . . . . . . 3 1 Max Gunslinging Chain 1 | . . 1 . . . . . . 1 1 Autonomous 36 | . . . . . . . . . 4 32 Shots Hit Robots 476 | 16 74 3 . . 74 33 35 35 161 45 Core Hits 247 | 5 31 2 . . 47 31 19 13 71 28 Critical Kills 1 | . . . . . . . . . 1 . Critical Parts Destroyed 1 | . . . . . . . . . 1 . Critical Strikes 5 | . . . . . 2 . . . 2 1 Burn 1 | . . . . . . . . . . 1 Meltdown 1 | . . . . . . . . . 1 . Destroy 1 | . . . . . . . . . 1 . Blast 2 | . . . . . 2 . . . . . Melee Attacks 40 | . . . . . . . . . 40 . Impact . | . . . . . . . . . . . Slashing 39 | . . . . . . . . . 39 . Piercing . | . . . . . . . . . . . Sneak Attacks . | . . . . . . . . . . . Combat Hostiles . | . . . . . . . . . . . Follow-up Attacks . | . . . . . . . . . . . Damage Inflicted 10964 | 151 794 33 . . 1188 889 651 695 5040 1523 Guns 4986 | 151 794 33 . . 239 . 386 680 1486 1217 Cannons 3163 | . . . . . 949 529 265 . 1420 . Explosions 644 | . . . . . . 360 . . . 284 Melee 2134 | . . . . . . . . . 2134 . Ramming 37 | . . . . . . . . 15 . 22 Kinetic 5101 | 151 794 33 . . 1188 529 371 680 1355 . Thermal 3060 | . . . . . . . 280 . 1551 1229 Explosive 360 | . . . . . . 360 . . . . Electromagnetic 272 | . . . . . . . . . . 272 Impact . | . . . . . . . . . . . Slashing 2134 | . . . . . . . . . 2134 . Piercing . | . . . . . . . . . . . Highest Corruption 10 | . . . . . . . . . 10 4 Average Corruption 7 | . . . . . . . . . 10 2 Corruption Purged . | . . . . . . . . . . . Corruption Blocked . | . . . . . . . . . . . Effects 3 | . . . . . . . . . 3 . Matter Fused 1 | . . . . . . . . . 1 . Heat Flow Errors 1 | . . . . . . . . . 1 . Data Loss (minor) 1 | . . . . . . . . . 1 . Overload Shots . | . . . . . . . . . . . Overflow Damage 81 | . . . . . . 8 . . 73 . Projectiles 17 | . . . . . . . . . 17 . Explosions 8 | . . . . . . 8 . . . . Melee 56 | . . . . . . . . . 56 . Knockbacks 30 | . . . . . 14 12 4 . . . Impact . | . . . . . . . . . . . Kinetic 28 | . . . . . 12 12 4 . . . Secondary 2 | . . . . . 2 . . . . . Self-Inflicted Damage 53 | . . . . . . . . . . 53 Shots 1 | . . . . . . . . . . 1 Rammed 3 | . . . . . . . . . . 3 Targets Rammed 6 | . 1 . . . . . . 1 . 4 Kicked . | . . . . . . . . . . . Crushed 3 | . 1 . . . . . . 1 . 1 Highest Temperature 469 | . 18 . . . 114 269 465 18 469 85 Average Temperature 86 | . 7 . . . 27 74 114 9 144 45 Received Heat Transfer 1914 | . 216 6 . . 171 144 36 144 663 534 Effects 4 | . . . . . . . 2 . 2 . Shutdowns 3 | . . . . . . . 2 . 1 . Damage (major) 1 | . . . . . . . . . 1 . Siege Activations 1 | . . . . . . . . . . 1 Total Turns 12 | . . . . . . . . . . 12 Longest Duration 12 | . . . . . . . . . . 12 Martial Activations . | . . . . . . . . . . . Shielding Activations . | . . . . . . . . . . . Robots Disrupted . | . . . . . . . . . . . Combat Hostiles . | . . . . . . . . . . . Robots Corrupted . | . . . . . . . . . . . Combat Hostiles . | . . . . . . . . . . . Parts Fried . | . . . . . . . . . . . Impact Corruptions . | . . . . . . . . . . . Robots Melted 1 | . . . . . . . . . 1 . Combat Hostiles 1 | . . . . . . . . . 1 . Parts Melted 13 | . . . . . . . 3 . 8 2 Heat Transferred 5192 | . . . . . . . 592 . 2925 1675 Parts Sabotaged . | . . . . . . . . . . . Parts Stolen . | . . . . . . . . . . . Parts Stripped . | . . . . . . . . . . . Power Chain Reactions 2 | . . . . . . . . . . 2 Alert | -11 -10 -10 -10 -9 -8 -8 -8 -7 -7 -6 ------- Run | Yrd Mat Min Exi Min Mat Gar Mat Fac Gar Fac Maximum Alert Level 3 | . . . . . . 1 . . 3 2 Low Security (%) 74 | 100 100 100 . 100 100 33 100 100 14 35 Level 1 17 | . . . . . . 66 . . 16 64 Level 2 7 | . . . . . . . . . 62 . Level 3 . | . . . . . . . . . 6 . Level 4 . | . . . . . . . . . . . Level 5 . | . . . . . . . . . . . High Security . | . . . . . . . . . . . Max Security . | . . . . . . . . . . . Peak Influence 711 | 5 110 156 . . 122 372 196 80 711 404 Initial 373 | . . . . . . . 181 11 39 373 Average 136 | . 23 36 . . 35 229 107 15 476 243 Influence Increases 3000 | 10 322 224 . . 412 392 197 169 842 432 Destroy 0b10 Robot/C 1820 | . 200 160 . . 240 280 120 120 480 220 Destroy 0b10 Robot/NC 130 | 10 25 . . . 25 . 15 10 30 15 Destroy Leader 288 | . 54 20 . . 88 10 34 10 40 32 Allied During Kill 69 | . . 44 . . 2 11 . . 5 7 Successful Hack 80 | . 27 . . . 11 6 12 12 12 . Select Force Hacks 30 | . . . . . . . . . . 30 Disable Machine 60 | . . . . . . . . . . 60 Anti-Garrison Action 300 | . . . . . . 50 . . 250 . Destroy Structure 73 | . 1 . . . 1 20 1 2 25 23 Partial Spotted 15 | . . . . . . . 15 . . . Lose Combat Pursuer 135 | . 15 . . . 45 15 . 15 . 45 Influence Decreases 2839 | 10 322 108 116 . 412 20 543 139 187 982 Entered New Map 677 | . . . 116 . . . 191 15 17 338 Time Decay 1712 | 10 312 88 . . 362 . 342 124 . 474 Lost Part 370 | . 10 . . . 30 . 10 . 170 150 Lost Ally 80 | . . 20 . . 20 20 . . . 20 Squads Dispatched 21 | . 3 1 . . 5 . 1 2 . 9 Investigation 8 | . 2 1 . . 2 . 1 . . 2 Extermination 4 | . . . . . . . . 1 . 3 Reinforcement 8 | . 1 . . . 3 . . . . 4 Assault . | . . . . . . . . . . . Garrison 1 | . . . . . . . . 1 . . Intercept . | . . . . . . . . . . . Searches Triggered . | . . . . . . . . . . . Construction Impeded 1 | . . . . . . . . . . 1 Haulers Reinforced 2 | . . . . . . . . . . 2 Active Scanning Responses . | . . . . . . . . . . . Cargo Convoy Interrupts . | . . . . . . . . . . . Stealth | -11 -10 -10 -10 -9 -8 -8 -8 -7 -7 -6 --------- Run | Yrd Mat Min Exi Min Mat Gar Mat Fac Gar Fac Distress Signals 6 | . 3 . . . 1 . 2 . . . Communications Jammed . | . . . . . . . . . . . Distress Signals . | . . . . . . . . . . . Times Spotted 167 | . 26 7 . . 15 15 15 9 48 32 Peak Tracking Total 10 | . 3 3 . . 5 6 4 4 10 8 Tactical Retreats 8 | . 1 . . . 2 1 . 1 1 2 Traps | -11 -10 -10 -10 -9 -8 -8 -8 -7 -7 -6 ------- Run | Yrd Mat Min Exi Min Mat Gar Mat Fac Gar Fac Traps Triggered 12 | . 2 . . . . 5 1 1 2 1 Indirectly . | . . . . . . . . . . . Trap Hack Attempts . | . . . . . . . . . . . Triggered . | . . . . . . . . . . . Disarmed 1 | . 1 . . . . . . . . . Reprogrammed . | . . . . . . . . . . . Reused . | . . . . . . . . . . . Traps Extracted . | . . . . . . . . . . . Installed . | . . . . . . . . . . . Triggered . | . . . . . . . . . . . Machines | -11 -10 -10 -10 -9 -8 -8 -8 -7 -7 -6 ---------- Run | Yrd Mat Min Exi Min Mat Gar Mat Fac Gar Fac Machines Disabled 6 | . . . . . . 1 . . 1 4 Max in Single Turn 1 | . . . . . . 1 . . 1 1 Garrison Relay 3 | . . . . . . 2 . . 1 . Machines Repaired . | . . . . . . . . . . . Machines Dismantled . | . . . . . . . . . . . Machines Sabotaged . | . . . . . . . . . . . Overloaded Fab Kills . | . . . . . . . . . . . Hacking | -11 -10 -10 -10 -9 -8 -8 -8 -7 -7 -6 --------- Run | Yrd Mat Min Exi Min Mat Gar Mat Fac Gar Fac Machines Accessed 22 | . 5 1 1 . 4 1 3 4 1 2 Terminals 14 | . 5 . . . 3 1 2 1 1 1 Fabricators 1 | . . . . . . . . 1 . . Repair Stations . | . . . . . . . . . . . Recycling Units 1 | . . . . . . . . 1 . . Scanalyzers 1 | . . . . . . . 1 . . . Garrison Access 3 | . . . . . 1 . . 1 . 1 Total Hacks 56 | . 15 1 1 . 11 3 7 11 2 5 Successful 28 | . 6 1 1 . 5 1 3 6 1 4 Failed 28 | . 9 . . . 6 2 4 5 1 1 Catastrophic 4 | . 1 . . . 1 . 2 . . . Database Lockouts . | . . . . . . . . . . . Manual 26 | . 11 . 1 . 8 . 4 . . 2 Terminals 38 | . 15 . . . 9 3 5 2 2 2 Fabricators 4 | . . . . . . . . 4 . . Repair Stations . | . . . . . . . . . . . Recycling Units 4 | . . . . . . . . 4 . . Scanalyzers 2 | . . . . . . . 2 . . . Garrison Access 6 | . . . . . 2 . . 1 . 3 Terminal Hacks 15 | . 5 1 1 . 3 1 1 1 1 1 Prototype ID Bank 2 | . . . . . . . . 1 . 1 Open Door 2 | . . 1 . . . 1 . . . . Emergency Access Points 1 | . . . . . . . . . 1 . Locate Traps 4 | . 2 . . . 2 . . . . . Disarm Traps 1 | . 1 . . . . . . . . . Recall Investigation 1 | . 1 . . . . . . . . . Hauler Manifests 1 | . . . . . . . 1 . . . Zone Layout 2 | . 1 . . . 1 . . . . . Proto ID Catalog 1 | . . . 1 . . . . . . . Fabricator Hacks 1 | . . . . . . . . 1 . . Build 1 | . . . . . . . . 1 . . Repair Station Hacks . | . . . . . . . . . . . Recycling Unit Hacks 3 | . . . . . . . . 3 . . Retrieve Matter 2 | . . . . . . . . 2 . . Retrieve Components 1 | . . . . . . . . 1 . . Scanalyzer 2 | . . . . . . . 2 . . . Retrieve Study 2 | . . . . . . . 2 . . . Garrison Access Hacks 4 | . . . . . 1 . . 1 . 2 Unlock Access 2 | . . . . . 1 . . 1 . . Coupler Status 2 | . . . . . . . . . . 2 Unauthorized Hacks 3 | . 1 . . . 1 . . . . 1 Terminals 2 | . 1 . . . 1 . . . . . Botnet 1 | . . . . . 1 . . . . . Operators 1 | . 1 . . . . . . . . . Fabricators . | . . . . . . . . . . . Repair Stations . | . . . . . . . . . . . Recycling Units . | . . . . . . . . . . . Scanalyzers . | . . . . . . . . . . . Garrison Access 1 | . . . . . . . . . . 1 Eject 1 | . . . . . . . . . . 1 Data Cores Recovered . | . . . . . . . . . . . Used . | . . . . . . . . . . . Hacking Detections 17 | . 4 . . . 4 1 3 3 1 1 Full Trace Events 1 | . 1 . . . . . . . . . Feedback Events . | . . . . . . . . . . . Feedback Blocked . | . . . . . . . . . . . Robot Schematics Acquired . | . . . . . . . . . . . Robots Built . | . . . . . . . . . . . Authchips . | . . . . . . . . . . . Time . | . . . . . . . . . . . Total Robot Build Rating . | . . . . . . . . . . . Part Schematics Acquired . | . . . . . . . . . . . Parts Built 2 | . . . . . . . . 2 . . Authchips . | . . . . . . . . . . . Time 117 | . . . . . . . . 117 . . Total Part Build Rating 14 | . . . . . . . . 14 . . Part Studies Acquired 2 | . . . . . . . 2 . . . Parts Repaired . | . . . . . . . . . . . Time . | . . . . . . . . . . . Parts Recycled . | . . . . . . . . . . . Recycled Matter . | . . . . . . . . . . . Retrieved Matter . | . . . . . . . . . . . Retrieved Components 1 | . . . . . . . . 1 . . Parts Scanalyzed . | . . . . . . . . . . . Part Schematics Acquired . | . . . . . . . . . . . Parts Damaged . | . . . . . . . . . . . Bothacking | -11 -10 -10 -10 -9 -8 -8 -8 -7 -7 -6 ------------ Run | Yrd Mat Min Exi Min Mat Gar Mat Fac Gar Fac Used RIF Installer 2 | . . . . . . 1 . . 1 . Patrol Navigation 1 | . . . . . . . . . 1 . Robots Hacked 4 | . . . . . . . . . 2 2 Non-combat . | . . . . . . . . . . . Combat 4 | . . . . . . . . . 2 2 Robot Hacks Applied 4 | . . . . . . . . . 2 2 reboot_system 1 | . . . . . . . . . . 1 streamctrl_high 2 | . . . . . . . . . 2 . formatsys_high 1 | . . . . . . . . . . 1 Relay Couplers Released 17 | . . . . . . 10 . . 4 3 Ejected 3 | . . . . . . . . . . 3 Machine Destruction 14 | . . . . . . 10 . . 4 . Attached 4 | . . . . . . . . . 1 3 Fabnet Peak Effective % . | . . . . . . . . . . . Robots Rewired . | . . . . . . . . . . . Allies Hacked . | . . . . . . . . . . . Hacks Repelled . | . . . . . . . . . . . Allies | -11 -10 -10 -10 -9 -8 -8 -8 -7 -7 -6 -------- Run | Yrd Mat Min Exi Min Mat Gar Mat Fac Gar Fac Total Allies 8 | . . 4 . . . 1 . . 2 1 Largest Group 4 | . . 4 2 2 2 1 . . 1 1 Highest-Rated Group 71 | . . 71 24 24 24 25 . . 32 41 Highest-Rated Ally 41 | . . 31 16 16 16 25 . . 32 41 Total Orders . | . . . . . . . . . . . Ally Attacks 64 | . . 30 . . 6 8 . . 6 14 Total Damage 1387 | . . 360 . . 74 110 . . 198 645 Kills 14 | . . 7 . . 1 . . . 4 2 Allies Corrupted . | . . . . . . . . . . . Allies Melted . | . . . . . . . . . . . Intel | -11 -10 -10 -10 -9 -8 -8 -8 -7 -7 -6 ------- Run | Yrd Mat Min Exi Min Mat Gar Mat Fac Gar Fac Active Infowar (turns) 7175 | 19 1422 693 373 304 1409 860 772 662 31 630 Optics 140 | . . . . . . . . . . 140 Seismic 2886 | 19 1422 693 373 304 75 . . . . . Machine Analysis 3785 | . . . . . 1334 860 772 662 31 126 ECM 490 | . . . . . . . . . . 490 Robot Analysis Total . | . . . . . . . . . . . Derelict Logs Recovered . | . . . . . . . . . . . Drone Launches . | . . . . . . . . . . . Drone Recoveries . | . . . . . . . . . . . Exploration | -11 -10 -10 -10 -9 -8 -8 -8 -7 -7 -6 ------------- Run | Yrd Mat Min Exi Min Mat Gar Mat Fac Gar Fac Turns Passed 8799 | 141 1422 693 373 304 1416 860 772 662 956 1200 Spaces Moved 3997 | 68 742 386 233 188 512 313 304 279 281 691 Core 298 | 19 . . . . . . . . . 279 Treads 3657 | 49 742 386 233 188 512 313 304 279 281 370 Legs . | . . . . . . . . . . . Wheels . | . . . . . . . . . . . Hover . | . . . . . . . . . . . Flight 42 | . . . . . . . . . . 42 Fastest Speed 37 | 50 160 160 160 160 160 240 205 205 160 37 Average Speed 175 | 129 160 160 160 160 232 240 214 205 189 108 Slowest Speed 290 | 160 160 160 160 160 240 240 290 206 280 160 Overloaded Moves . | . . . . . . . . . . . Propulsion Burnouts . | . . . . . . . . . . . Robots Hopped . | . . . . . . . . . . . Potential Cave-ins . | . . . . . . . . . . . Cave-ins Triggered . | . . . . . . . . . . . Exploration Rate (%) 41 | 5 79 73 61 36 45 40 36 10 40 29 Regions Visited 10 Branch Regions 3 Pre-discovered Areas 1 | . . . . 1 . . . . . . Known Exits Taken 2 | . . . . . 1 . . 1 . . Unknown Exits Taken 6 | 1 1 1 1 1 . . 1 . . . Scrap Searched 3 | . . 2 . 1 . . . . . . Spaces Dug . | . . . . . . . . . . . Terrain Destroyed 50 | . . . . . . 24 . . 4 22 Melee . | . . . . . . . . . . . Projectile 21 | . . . . . . . . . 4 17 AOE 29 | . . . . . . 24 . . . 5 Terrain Rammed . | . . . . . . . . . . . Walls Destroyed . | . . . . . . . . . . . Machines Disabled . | . . . . . . . . . . . Actions | -11 -10 -10 -10 -9 -8 -8 -8 -7 -7 -6 --------- Run | Yrd Mat Min Exi Min Mat Gar Mat Fac Gar Fac Total 5177 | 92 876 462 234 191 663 366 386 335 483 1089 Wait 638 | . 67 55 . 4 93 6 23 35 17 338 Move 3985 | 67 741 385 232 187 511 311 303 278 279 691 Hop . | . . . . . . . . . . . Pick Up 57 | 3 8 8 1 . 6 3 14 2 10 2 Fast Attach 32 | 7 . . . . 2 . 2 1 7 13 Attach 27 | . 1 . . . 5 . . 2 12 7 Detach 7 | . . . . . . . 1 . 4 2 Swap 43 | 1 3 3 . . 7 1 12 1 12 3 Drop 47 | . . 9 1 . 6 3 13 1 12 2 Fire 281 | 14 55 2 . . 33 32 18 14 86 27 Melee 40 | . . . . . . . . . 40 . Ram 1 | . . . . . . . . . . 1 Kick . | . . . . . . . . . . . Crush 5 | . 1 . . . . . . 1 . 3 Escape Stasis 14 | . . . . . . 10 . . 4 . Rewire . | . . . . . . . . . . . Trap . | . . . . . . . . . . . Miscellaneous . | . . . . . . . . . . . Route ------- -11/Scrapyard -10/Materials (discovered 5 exits: [*Mat x3] / *Min x2) -10/Mines (discovered 2 exits: [*Mat] / *Exi) -10/Exiles -9/Mines -8/Materials (discovered 2 exits: *Fac / Gar) -8/Garrison -8/Materials (discovered 2 exits: *Fac x2) -7/Factory -7/Garrison -6/Factory History --------- Turn | Location | Event 4 | -11/Scrapyard | Discovered new exit (range 16) 142 | -11/Scrapyard | Entered Materials 218 | -10/Materials | Discovered new exit (range 15) 315 | -10/Materials | Build established: Mutant 572 | -10/Materials | Discovered new exit (range 11) 643 | -10/Materials | Discovered new exit (range 8) 1046 | -10/Materials | Discovered new exit (range 14) 1163 | -10/Materials | Discovered new exit (range 3) 1564 | -10/Materials | Entered Mines 1571 | -10/Mines | Received a Rocket Launcher from a helpful Derelict 1676 | -10/Mines | Found a hidden stash of uninstalled traps 1736 | -10/Mines | Met a Derelict shopkeep closing up shop 1833 | -10/Mines | Discovered new exit (range 9) 1851 | -10/Mines | Assisted by bots powering up and referring to "LRC-V3" 1935 | -10/Mines | Received a Mining Laser from a helpful Derelict 2241 | -10/Mines | Deemed a non-threat by the Exiles lab entrance 2242 | -10/Mines | Discovered new exit (range 5) 2257 | -10/Mines | Entered Exiles 2257 | -10/Exiles | Accompanied by 2 allies 2296 | -10/Exiles | Met 8R-AWN 2320 | -10/Exiles | Met EX-HEX 2366 | -10/Exiles | Met EX-BIN 2397 | -10/Exiles | Aligned with FarCom system 2398 | -10/Exiles | Given EX-Vault access code 2449 | -10/Exiles | Build established: Scavenger-Mutant 2454 | -10/Exiles | Opened EX-Vault 2472 | -10/Exiles | Found Superbattery 2504 | -10/Exiles | Warned to stay clear of 0b10 Research branches 2552 | -10/Exiles | Met EX-DEC 2611 | -10/Exiles | Discovered new exit (range 14) 2630 | -10/Exiles | Left Exiles lab with Superbattery 2630 | -10/Exiles | Entered Mines 2630 | -9/Mines | Accompanied by 2 allies 2671 | -9/Mines | Met a Derelict bent on vengeance 2684 | -9/Mines | Learned location of Storage (-8) 2688 | -9/Mines | Discovered new exit (range 5) 2934 | -9/Mines | Entered Materials 2934 | -8/Materials | Accompanied by 2 allies 2934 | -8/Materials | Evolved 4 slots: Power x1, Utility x2, Weapon x1 3279 | -8/Materials | Build established: Scavenger-Skirmisher 3749 | -8/Materials | Met 7R-MNS 3992 | -8/Materials | Discovered new exit (range 8) 4305 | -8/Materials | Build established: Skirmisher 4307 | -8/Materials | Identified exit to Garrison 4350 | -8/Materials | Entered Garrison 4422 | -8/Garrison | Triggered checkpoint 4452 | -8/Garrison | Garrison Relay disabled 4500 | -8/Garrison | Rescued a captive Derelict 4596 | -8/Garrison | Triggered checkpoint 4615 | -8/Garrison | Triggered checkpoint 4774 | -8/Garrison | Triggered checkpoint 4809 | -8/Garrison | Discovered new exit (range 13) 4833 | -8/Garrison | Installed Relay Interface Framework 5086 | -8/Garrison | Garrison Relay disabled 5210 | -8/Garrison | Entered Materials 5614 | -8/Materials | Discovered new exit (range 5) 5892 | -8/Materials | Discovered new exit (range 15) 5982 | -8/Materials | Entered Factory 5982 | -7/Factory | Evolved 2 slots: Propulsion x1, Utility x1 6321 | -7/Factory | Fabricated Lgt. Antimatter Reactor (x2) 6557 | -7/Factory | Garrison activated, responded to threat 6642 | -7/Factory | Identified exit to Garrison 6644 | -7/Factory | Entered Garrison 6659 | -7/Garrison | Expanded RIF knowledge: Patrol Navigation 6786 | -7/Garrison | Triggered checkpoint 6902 | -7/Garrison | Triggered checkpoint 6923 | -7/Garrison | Assembled breached garrison interior 6986 | -7/Garrison | Destroyed 7 combat bots 7039 | -7/Garrison | Lost 10 parts (4p3n1u2w) 7129 | -7/Garrison | Garrison Relay disabled 7410 | -7/Garrison | Discovered new exit (range 8) 7444 | -7/Garrison | Build established: Bothacker-Mutant 7498 | -7/Garrison | System corruption reached 10% 7528 | -7/Garrison | Lost 3 parts (1n2u) 7579 | -7/Garrison | Destroyed 13 combat bots 7600 | -7/Garrison | Entered Factory 7600 | -6/Factory | Evolved 2 slots: Propulsion x1, Utility x1 7859 | -6/Factory | Build established: Bothacker-Tank 8388 | -6/Factory | Lost 3 parts (1p1u1w) 8630 | -6/Factory | Released all parts (6) 8661 | -6/Factory | Lost 6 parts (2n1u3w) 8729 | -6/Factory | Core integrity fell below 50% 8765 | -6/Factory | Core integrity fell below 20% 8800 | -6/Factory | Destroyed by P-60 Hacker with Shock Rifle Last Messages --------------- 08764_ Penetrated by Slug. 08764_ >> Machine Analyzer network decryption results: 08764_ Recycling Unit x1 08764_ Penetrated by Slug. 08764_ Hacking Suite destroyed. 08765_ >> Machine Analyzer network decryption results: 08765_ Scanalyzer x2 08767_ Slug penetrates Wall. 08774_ >> Machine Analyzer network decryption results: 08774_ Recycling Unit x1 08781_ Acquired Xenon Bombardment Thruster. 08781_ Slug penetrates Wall. 08783_ Acquired Xenon Bombardment Thruster. 08786_ Xenon Bombardment Thruster destroyed. 08793_ ALERT: Potential suspicious activity detected, Programmers report to Factory Zone 4M. 08798_ >> Machine Analyzer network decryption results: 08798_ DSF Access x1 08799_ >> Machine Analyzer network decryption results: 08799_ Terminal x2 Map ----- +----------------------------------------------------+ | ????????????????????????????????????????????? | | ????????????????????????????????????????????? | | ????????????????????????????????????????????? | | ????????????????????????????????????????????? | | ????????????????????????????????????????????? | | ????????????????????????????????????????????? | | ????????????????????????????????????????????? | | ????????????????????????????????????????????? | | ????????????????????????????????????????????? | | ?????????????????"""""??????????????????????? | | ?????????????????"""""??????????????????????? | | ?????????????????"""????????????????????????? | | ????????????????????????????????????????????? | | ????????????????????????????????????""""????? | | ?????????????###########????????????""""????? | | ????????????? ##???????????""""????? | | ??????????????? T?????????Y??""""????? | | ????????????????# ????????????""""????? | | ?????????#???????# #????????????""""?""T" | | ????????? ??????# #?????????????????"""" | | ????????? ????# #################+#### | | ??????"""""""""??# | | ???????? ?# | | ??????""""""""" # | | ???????? + w | | ??????"""""""""??# @ u | | ?????????????????# k | | ??????"""""""""??# p | | ?????????????????#######+######+#### | | ??????"""""""""???????# ????????# | | ??????????????????????# ??????# | | ??????????????????????# ????# | | ??????????????????????# ??# | | ??????????????????????# # | | ??????????????????????# # | | ??????????????????????# # | | ??????????????????????# + | | ??????????????????????# #### ##### | | ??????????????????????# #??# #???# | | ????????????????""????# #??# #???# | | ????????????????""????# #??# #???# | | ????????????????"T????##############??# #???# | | ????????????????""????????????????????# #???# | | ????????????????""????????????????????# #???# | | ??????????????????????????????????????# #???# | | ??????????????????"""?????????????????? ????# | | ??????????????????"""??????????????????+????# | | ??????????????????"""???????????????????????# | | ???????????????????????????????????"""?"""??# | | ???????????????????????????????????"""?"""??# | +----------------------------------------------------+ Best States ------------- Heat Dissipation 91 Coolant Potential 65 Energy Generation 30 Energy Capacity 2000 Matter Stores 300 Matter Capacity 300 Sight Range 22 Terrain Scan Density 10 ECM Strength 1 Armor Coverage 300 Utility Shielding 66 Evasion (%) 62 Recoil Reduction 4 Offensive Hacking 22 Relay Coupler Types 1 Relay Coupler Value 21 Item Schematics ----------------- None Robot Schematics ------------------ None Fabricated ------------ Lgt. Antimatter Reactor | x2 | -7/Factory | Preloaded Repaired ---------- Nothing Studied --------- Arm. Treads | -8/Materials | Hacked Imp. Treads | -8/Materials | Hacked Alien Tech Used ----------------- None Achievements -------------- Drive-By We Love MA Challenges ------------ None Game ------ Seed NodeSmartbombMaterializer Manual? 0 Play Time 01:07:39 Cumulative 63.9 hours Start 2026.08.18 @ 22:51:43 End 2026.08.19 @ 00:11:36 Sessions 1 Manual Loads 0 Difficulty Rogue Special Mode None Game No. 132 Rogue 125 Adventurer 7 Explorer 0 Win Type - Total 1 Types 1/0/0/0/0/0/0/0/0/0 Lore% 34 Gallery% 40 Achievement% 32 Wizard Run 0 Options --------- Layout 1 ASCII 0 Keyboard 1 Movement Vi Keybinds 0 Fullscreen 1 Font 24/Smallcaps Map View 76x35 Zoom Use 0% Tactical HUD 1 Map Filters NONE Filters NONE Steam 1 RUN: d1e1bef7-0e8b-425e-9eff-8bf263970750